[Event "Hungarian Rapid-ch 2022"]
[Site "Ajka"]
[Date "2022.07.17"]
[Round "13.21"]
[White "Leviczky, Tibor"]
[Black "Mihok-Juhasz, Barbara"]
[Result "0-1"]
[ECO "E80"]
[WhiteElo "2281"]
[BlackElo "2221"]
[Annotator "ChessBase"]
[PlyCount "58"]
[EventDate "2022.07.15"]
[EventType "swiss"]
[EventCountry "HUN"]
[SourceTitle "playchess.com"]
[Source "ChessBase"]
[SourceQuality "1"]
[TimeControl "900+10"]

1. d4 {[%emt 0:00:11]} Nf6 {[%emt 0:00:12]} 2. c4 {[%emt 0:00:02]} g6 {[%emt 0:00:02]} 3. Nc3 {[%emt 0:00:01]} Bg7 {[%emt 0:00:01]} 4. e4 {[%emt 0:00:02]} d6 {[%emt 0:00:02]} 5. f3 {[%emt 0:00:02]} a6 {[%emt 0:00:51]} 6. Be3 {[%emt 0:02:15]} O-O {[%emt 0:00:04]} 7. Nge2 {[%emt 0:00:03]} b5 {[%emt 0:00:39]} 8. cxb5 {[%emt 0:00:41]} axb5 {[%emt 0:00:01]} 9. Nxb5 {[%emt 0:00:10]} c6 {[%emt 0:00:01]} 10. Nbc3 {[%emt 0:00:02]} Ba6 {[%emt 0:00:03]} 11. Ng3 {[%emt 0:00:30]} Bxf1 {[%emt 0:00:31]} 12. Nxf1 {[%emt 0:00:14]} Nbd7 {[%emt 0:00:15]} 13. Nd2 {[%emt 0:00:04]} c5 {[%emt 0:00:02]} 14. dxc5 {[%emt 0:00:52]} Nxc5 {[%emt 0:00:02]} 15. O-O {[%emt 0:00:04]} Nfd7 {[%emt 0:00:17]} 16. Nc4 {[%emt 0:01:19]} Bxc3 {[%emt 0:00:43]} 17. bxc3 {[%emt 0:00:03]} Qc7 {[%emt 0:00:02]} 18. Nd2 {[%emt 0:02:29]} Ra3 {[%emt 0:01:02]} 19. Qc2 {[%emt 0:01:16]} Rfa8 {[%emt 0:00:35]} 20. Bg5 {[%emt 0:01:43]} Qa7 {[%emt 0:01:09]} 21. Kh1 {[%emt 0:01:49]} f6 {[%emt 0:01:45]} 22. Bh4 {[%emt 0:00:20]} Rxa2 {[%emt 0:00:07]} 23. Rxa2 {[%emt 0:00:07]} Qxa2 {[%emt 0:00:02]} 24. Qd1 {[%emt 0:00:11]} Rb8 {[%emt 0:00:46]} 25. Qe2 {[%emt 0:00:41]} Kg7 {[%emt 0:00:43]} 26. Qe3 {[%emt 0:01:58]} Rb2 {[%emt 0:00:33]} 27. Rf2 {[%emt 0:00:20]} Rb1+ {[%emt 0:02:16]} 28. Nf1 {[%emt 0:00:31]} Qa1 {[%emt 0:00:01]} 29. Kg1 {[%emt 0:00:04]} Ne5 {[%emt 0:00:02]} 0-1

[Event "Hungarian Rapid-ch 2022"]
[Site "Ajka"]
[Date "2022.07.17"]
[Round "13.22"]
[White "Seres, Bela"]
[Black "Bodi, Tibor"]
[Result "0-1"]
[ECO "B02"]
[WhiteElo "2207"]
[BlackElo "2301"]
[Annotator "ChessBase"]
[PlyCount "84"]
[EventDate "2022.07.15"]
[EventType "swiss"]
[EventCountry "HUN"]
[SourceTitle "playchess.com"]
[Source "ChessBase"]
[SourceQuality "1"]
[TimeControl "900+10"]

1. e4 {[%emt 0:00:10]} Nf6 {[%emt 0:00:12]} 2. Nc3 {[%emt 0:00:06]} d5 {[%emt 0:00:01]} 3. e5 {[%emt 0:00:02]} Ne4 {[%emt 0:00:02]} 4. Nxe4 {[%emt 0:00:45]} dxe4 {[%emt 0:00:03]} 5. d4 {[%emt 0:00:05]} exd3 {[%emt 0:00:02]} 6. Bxd3 {[%emt 0:00:01]} Nc6 {[%emt 0:00:11]} 7. f4 {[%emt 0:00:27]} Nb4 {[%emt 0:00:02]} 8. a3 {[%emt 0:00:11]} Nxd3+ {[%emt 0:00:03]} 9. Qxd3 {[%emt 0:00:01]} Qxd3 {[%emt 0:00:03]} 10. cxd3 {[%emt 0:00:01]} Bf5 {[%emt 0:00:03]} 11. d4 {[%emt 0:00:04]} O-O-O {[%emt 0:00:03]} 12. Be3 {[%emt 0:00:01]} e6 {[%emt 0:00:34]} 13. Ne2 {[%emt 0:00:11]} b6 {[%emt 0:02:03]} 14. Ng3 {[%emt 0:00:41]} Bd3 {[%emt 0:00:22]} 15. Rd1 {[%emt 0:00:46]} Bc4 {[%emt 0:00:06]} 16. Kf2 {[%emt 0:00:41]} Kb7 {[%emt 0:00:39]} 17. Rc1 {[%emt 0:00:17]} Bd5 {[%emt 0:00:03]} 18. Rc3 {[%emt 0:00:01]} Be7 {[%emt 0:00:22]} 19. Rhc1 {[%emt 0:00:03]} c6 {[%emt 0:00:58]} 20. b4 {[%emt 0:00:20]} Ra8 {[%emt 0:01:03]} 21. Bd2 {[%emt 0:01:02]} a5 {[%emt 0:00:21]} 22. b5 {[%emt 0:00:50]} Rac8 {[%emt 0:00:11]} 23. bxc6+ {[%emt 0:00:12]} Rxc6 {[%emt 0:00:02]} 24. Nf1 {[%emt 0:01:30]} Rhc8 {[%emt 0:00:14]} 25. Rxc6 {[%emt 0:00:02]} Rxc6 {[%emt 0:00:02]} 26. Rxc6 {[%emt 0:00:01]} Kxc6 {[%emt 0:00:11]} 27. Bc1 {[%emt 0:00:08]} Kb5 {[%emt 0:00:08]} 28. Ne3 {[%emt 0:00:03]} Bb3 {[%emt 0:00:19]} 29. g4 {[%emt 0:00:26]} Ka4 {[%emt 0:01:16]} 30. f5 {[%emt 0:00:11]} g6 {[%emt 0:01:13]} 31. fxg6 {[%emt 0:05:11]} fxg6 {[%emt 0:00:10]} 32. Kf3 {[%emt 0:00:46]} Bxa3 {[%emt 0:00:32]} 33. Bxa3 {[%emt 0:00:23]} Kxa3 {[%emt 0:00:01]} 34. Ke4 {[%emt 0:00:10]} Kb4 {[%emt 0:00:38]} 35. d5 {[%emt 0:00:10]} exd5+ {[%emt 0:00:52]} 36. Nxd5+ {[%emt 0:00:02]} Kc5 {[%emt 0:00:03]} 37. Nf6 {[%emt 0:00:02]} a4 {[%emt 0:00:08]} 38. Kd3 {[%emt 0:00:12]} h6 {[%emt 0:01:14]} 39. h4 {[%emt 0:00:20]} a3 {[%emt 0:00:33]} 40. Kc3 {[%emt 0:00:01]} a2 {[%emt 0:00:01]} 41. Kb2 {[%emt 0:00:00]} Be6 {[%emt 0:00:02]} 42. h5 {[%emt 0:00:44]} g5 {[%emt 0:00:21]} 0-1

[Event "Hungarian Rapid-ch 2022"]
[Site "Ajka"]
[Date "2022.07.17"]
[Round "13.23"]
[White "Kovacs, Klara"]
[Black "Tancsa, Tamas"]
[Result "0-1"]
[ECO "A49"]
[WhiteElo "2098"]
[BlackElo "2103"]
[Annotator "TA"]
[PlyCount "70"]
[EventDate "2022.07.15"]
[EventType "swiss"]
[EventCountry "HUN"]
[SourceTitle "playchess.com"]
[Source "ChessBase"]
[SourceQuality "1"]
[TimeControl "900+10"]

{[%evp 13,70,10,19,14,31,-17,0,-7,0,-18,-2,-6,-3,-22,-6,-56,-54,-52,-39,-91,-91,-100,-85,-114,-110,-175,-83,-81,-83,-164,-149,-179,-186,-363,-332,-838,-830,-840,-831,-810,-815,-1262,-814,-1895,-1762,-1768,-750,-677,-541,-541,-528,-628,-562,-997,-545,-29991,-29992,-29994,-29995]} 1. d4 {[%emt 0:00:12]} Nf6 {[%emt 0:00:14]} 2. Nf3 {[%emt 0:00:03]} g6 {[%emt 0:00:02]} 3. g3 {[%emt 0:00:02]} Bg7 {[%emt 0:00:02]} 4. Bg2 {[%emt 0:00:01]} O-O {[%emt 0:00:02]} 5. O-O {[%emt 0:00:02]} d6 {[%emt 0:00:02]} 6. Nc3 {[%emt 0:00:02]} Nbd7 {[%emt 0:00:44]} 7. e4 {[%emt 0:00:02]} e5 {[%emt 0:00:01]} 8. Bg5 {[%emt 0:00:24] B07: Pirc Defence: Miscellaneous Systems.} h6 {[%emt 0:00:14]} 9. Bxf6 {[%emt 0:00:12]} (9. Be3 $14) 9... Bxf6 {[%emt 0:00:02]} 10. Qd2 {[%emt 0:00:20] The position is equal.} Bg7 {[%emt 0:00:21]} 11. dxe5 {[%emt 0:00:04]} dxe5 {[%emt 0:00:02]} 12. Rad1 {[%emt 0:00:04]} c6 {[%emt 0:00:02] [#]} 13. Na4 $146 {[%emt 0:00:14][%cal Oa4c5] Hoping for Nc5!} ({Predecessor:} 13. Nh4 Qe7 14. a4 a5 15. Qd6 Bf6 16. Nf3 Qxd6 17. Rxd6 Be7 18. Rd3 Bb4 19. Rfd1 {0-1 (46) Trumpf,W (2155)-Vismara,D (2155) Asti 1996}) 13... Qc7 {[%emt 0:00:52]} 14. Qd6 {[%emt 0:00:29]} ({Better is} 14. Bh3 $11) 14... Qa5 {[%emt 0:00:34]} 15. b3 {[%emt 0:00:15]} Re8 $1 {[%emt 0:00:05]} 16. Nd2 {[%emt 0:01:52] [#]} (16. Bh3 $15 Bf8 17. Qd2 Qxd2 18. Rxd2) 16... Bf8 $1 $17 {[%emt 0:00:46]} 17. Qd3 {[%emt 0:00:04]} b5 {[%emt 0:01:34] Against Nc4} 18. Nc3 {[%emt 0:01:50]} Nc5 {[%emt 0:00:09] Prevents a4.} 19. Qf3 {[%emt 0:00:02]} (19. Qe3 $17 {keeps fighting.}) 19... Bg4 {[%emt 0:01:07]} 20. Qxg4 {[%emt 0:00:07] Strongly threatening Qf3.} Qxc3 {[%emt 0:00:02]} 21. f4 {[%emt 0:01:33]} (21. Nb1 $17 {might work better.} Qb2 22. f4) 21... Qxc2 $19 {[%emt 0:03:27] White must now prevent ...Rad8.} 22. f5 {[%emt 0:00:10] [#]} g5 $36 {[%emt 0:00:01][%mdl 2048] Black has strong initiative.} (22... Qxa2 23. fxg6 f6 24. Qf3 $14 (24. Rxf6 Rad8 $11)) 23. f6 $2 {[%emt 0:00:31]} (23. b4 {was worth a try.} Red8 24. Nb1) 23... Rad8 {[%emt 0:00:37]} (23... Qxa2 24. Rf5 Ne6 25. Nf3 $17) 24. Nf3 {[%emt 0:07:29]} (24. b4) 24... Rxd1 {[%emt 0:00:03]} 25. Nxg5 {[%emt 0:00:05]} Rxf1+ {[%emt 0:00:04]} 26. Bxf1 {[%emt 0:00:01]} Nd3 {[%emt 0:01:29]} ({Not} 26... hxg5 27. Qxg5+ Kh7 28. Qf5+ Kh8 29. Qh5+ Kg8 30. Qg5+ Kh7 31. Qf5+ Kh8 32. Qh5+ Kg8 33. Qg5+ $11) 27. Nxf7+ {[%emt 0:01:11]} Kxf7 {[%emt 0:00:10]} 28. Qd7+ {[%emt 0:00:12]} Kxf6 {[%emt 0:00:15] ( -> ...Qf2+)} 29. Bxd3 {[%emt 0:00:17]} Qc5+ {[%emt 0:01:16]} 30. Kg2 {[%emt 0:00:03]} Qe7 {[%emt 0:00:01]} 31. Qxc6+ {[%emt 0:00:41]} Qe6 {[%emt 0:00:01]} 32. Qxb5 {[%emt 0:00:02]} Rd8 {[%emt 0:00:11]} 33. Bc4 {[%emt 0:00:30]} Qb6 {[%emt 0:00:32]} 34. Qa4 {[%emt 0:00:01]} Rd2+ {[%emt 0:00:39]} ({Weaker is} 34... Rd1 35. Qe8 Rd2+ 36. Kh3 $16) 35. Kh3 {[%emt 0:00:02]} Qf2 {[%emt 0:00:07][%csl LRa2,LRh2] Weighted Error Value: White=1.00/Black=0.24 (precise)} 0-1

[Event "Hungarian Rapid-ch 2022"]
[Site "Ajka"]
[Date "2022.07.17"]
[Round "13.24"]
[White "Molnar, Aurel Jr."]
[Black "Margl, Roland"]
[Result "1/2-1/2"]
[ECO "B33"]
[WhiteElo "2014"]
[BlackElo "2312"]
[Annotator "ChessBase"]
[PlyCount "94"]
[EventDate "2022.07.15"]
[EventType "swiss"]
[EventCountry "HUN"]
[SourceTitle "playchess.com"]
[Source "ChessBase"]
[SourceQuality "1"]
[TimeControl "900+10"]

1. e4 {[%emt 0:00:17]} c5 {[%emt 0:00:19]} 2. Nf3 {[%emt 0:00:04]} Nc6 {[%emt 0:00:00]} 3. d4 {[%emt 0:00:02]} cxd4 4. Nxd4 {[%emt 0:00:01]} Nf6 {[%emt 0:00:03]} 5. Nc3 {[%emt 0:00:02]} e5 {[%emt 0:00:01]} 6. Ndb5 {[%emt 0:00:02]} d6 {[%emt 0:00:01]} 7. Bg5 {[%emt 0:00:02]} a6 {[%emt 0:00:01]} 8. Na3 {[%emt 0:00:00]} b5 {[%emt 0:00:01]} 9. Nd5 {[%emt 0:00:01]} Be7 {[%emt 0:00:01]} 10. Bxf6 {[%emt 0:00:02]} Bxf6 {[%emt 0:00:01]} 11. c4 {[%emt 0:00:02]} b4 {[%emt 0:00:01]} 12. Nc2 {[%emt 0:00:01]} O-O {[%emt 0:00:02]} 13. g3 {[%emt 0:00:04]} a5 {[%emt 0:00:05]} 14. Bg2 {[%emt 0:00:08]} g6 {[%emt 0:00:26]} 15. O-O {[%emt 0:02:07]} Bg7 {[%emt 0:00:03]} 16. b3 {[%emt 0:00:52]} Be6 {[%emt 0:00:48]} 17. Qd3 {[%emt 0:00:28]} Qb8 {[%emt 0:02:09]} 18. Rad1 {[%emt 0:00:15]} Rd8 {[%emt 0:00:12]} 19. f4 {[%emt 0:00:45]} exf4 {[%emt 0:02:29]} 20. gxf4 {[%emt 0:00:16]} f5 {[%emt 0:00:36]} 21. Kh1 {[%emt 0:01:12]} Ra7 {[%emt 0:00:44]} 22. Nce3 {[%emt 0:01:02]} Nd4 {[%emt 0:00:27]} 23. exf5 {[%emt 0:01:42]} Bxf5 {[%emt 0:04:25]} 24. Nxf5 {[%emt 0:00:15]} Nxf5 {[%emt 0:00:01]} 25. Rfe1 {[%emt 0:01:54]} Re8 {[%emt 0:03:31]} 26. Re4 {[%emt 0:02:38]} Rxe4 {[%emt 0:00:58]} 27. Qxe4 {[%emt 0:00:22]} a4 {[%emt 0:00:18]} 28. Bh3 {[%emt 0:00:50]} axb3 {[%emt 0:00:02]} 29. axb3 {[%emt 0:00:06]} Ra3 {[%emt 0:01:45]} 30. Bxf5 {[%emt 0:00:14]} gxf5 {[%emt 0:00:01]} 31. Qxf5 {[%emt 0:00:20]} Rxb3 {[%emt 0:00:07]} 32. Rg1 {[%emt 0:00:06]} Qb7 {[%emt 0:00:26]} 33. Qe4 {[%emt 0:01:42]} Qf7 {[%emt 0:00:14]} 34. f5 {[%emt 0:00:17]} Kh8 {[%emt 0:00:09]} 35. f6 {[%emt 0:00:20]} Bf8 {[%emt 0:00:00]} 36. Qf5 {[%emt 0:00:54]} Rb2 {[%emt 0:00:16]} 37. Qc8 {[%emt 0:00:45]} Rc2 {[%emt 0:00:12]} 38. Ne7 {[%emt 0:01:04]} Rxc4 {[%emt 0:00:02]} 39. Qd7 {[%emt 0:00:13]} Rc1 {[%emt 0:00:32]} 40. Rxc1 {[%emt 0:00:07]} Qxf6 {[%emt 0:00:01]} 41. Qf5 {[%emt 0:00:15]} Bxe7 {[%emt 0:00:18]} 42. Rc8+ {[%emt 0:00:09]} Kg7 {[%emt 0:00:01]} 43. Qg4+ {[%emt 0:00:03]} Qg5 {[%emt 0:00:08]} 44. Qd4+ {[%emt 0:00:11]} Qe5 {[%emt 0:00:04]} 45. Qg4+ {[%emt 0:00:15]} Qg5 {[%emt 0:00:01]} 46. Qd4+ {[%emt 0:00:01]} Qe5 {[%emt 0:00:22]} 47. Qg4+ {[%emt 0:00:03]} Qg5 {[%emt 0:00:07]} 1/2-1/2

[Event "Hungarian Rapid-ch 2022"]
[Site "Ajka"]
[Date "2022.07.17"]
[Round "13.25"]
[White "Miszler, Levente"]
[Black "Boguszlavszkij, Jevgenyij"]
[Result "1-0"]
[ECO "E01"]
[WhiteElo "2243"]
[BlackElo "1914"]
[Annotator "ChessBase"]
[PlyCount "95"]
[EventDate "2022.07.15"]
[EventType "swiss"]
[EventCountry "HUN"]
[SourceTitle "playchess.com"]
[Source "ChessBase"]
[SourceQuality "1"]
[TimeControl "900+10"]

1. d4 {[%emt 0:00:16]} Nf6 {[%emt 0:00:15]} 2. c4 {[%emt 0:00:01]} e6 {[%emt 0:00:01]} 3. g3 {[%emt 0:00:02]} d5 {[%emt 0:00:03]} 4. Bg2 {[%emt 0:00:01]} c6 {[%emt 0:00:01]} 5. Nf3 {[%emt 0:00:02]} Ne4 {[%emt 0:00:04]} 6. O-O {[%emt 0:00:15]} Nd7 {[%emt 0:00:01]} 7. Qc2 {[%emt 0:00:15]} Bd6 {[%emt 0:00:11]} 8. Nfd2 {[%emt 0:00:17]} f5 {[%emt 0:01:01]} 9. Nxe4 {[%emt 0:00:33]} fxe4 {[%emt 0:00:03]} 10. f3 {[%emt 0:00:03]} exf3 {[%emt 0:00:07]} 11. Bxf3 {[%emt 0:00:10]} O-O {[%emt 0:00:09]} 12. e4 {[%emt 0:00:27]} dxe4 {[%emt 0:01:32]} 13. Qxe4 {[%emt 0:00:04]} Nf6 {[%emt 0:00:04]} 14. Qe2 {[%emt 0:00:06]} Qc7 {[%emt 0:00:31]} 15. Nc3 {[%emt 0:00:36]} e5 {[%emt 0:00:27]} 16. d5 {[%emt 0:00:35]} Bh3 {[%emt 0:00:07]} 17. Re1 {[%emt 0:00:20]} Rae8 {[%emt 0:00:15]} 18. Bg5 {[%emt 0:00:42]} e4 {[%emt 0:00:33]} 19. Bg2 {[%emt 0:00:33]} Bxg2 {[%emt 0:00:38]} 20. Kxg2 {[%emt 0:00:12]} Bc5 {[%emt 0:01:50]} 21. Rf1 {[%emt 0:00:28]} Qe5 {[%emt 0:00:29]} 22. Bf4 {[%emt 0:00:42]} Qe7 {[%emt 0:01:03]} 23. Rae1 {[%emt 0:00:24]} Qd7 {[%emt 0:00:55]} 24. Bg5 {[%emt 0:01:07]} Bd4 {[%emt 0:01:41]} 25. Bxf6 {[%emt 0:00:43]} Bxf6 {[%emt 0:00:33]} 26. dxc6 {[%emt 0:02:59]} bxc6 {[%emt 0:00:16]} 27. Nxe4 {[%emt 0:00:34]} Kh8 {[%emt 0:00:26]} 28. Qf3 {[%emt 0:00:42]} Be7 {[%emt 0:00:34]} 29. Qh5 {[%emt 0:00:27]} Rxf1 {[%emt 0:00:54]} 30. Rxf1 {[%emt 0:00:19]} Rd8 {[%emt 0:00:55]} 31. Qf5 {[%emt 0:00:49]} Qxf5 {[%emt 0:00:52]} 32. Rxf5 {[%emt 0:00:01]} Kg8 {[%emt 0:00:09]} 33. b3 {[%emt 0:00:21]} Rd4 {[%emt 0:00:02]} 34. Kf3 {[%emt 0:00:07]} g6 {[%emt 0:00:24]} 35. Ra5 {[%emt 0:00:06]} Rd7 {[%emt 0:00:01]} 36. Ra6 {[%emt 0:00:10]} Rc7 {[%emt 0:00:53]} 37. Kf4 {[%emt 0:00:03]} h6 {[%emt 0:00:19]} 38. Ke5 {[%emt 0:00:07]} Kf7 {[%emt 0:00:05]} 39. Nd6+ {[%emt 0:01:07]} Kf8 {[%emt 0:00:02]} 40. c5 {[%emt 0:00:27]} Bg5 {[%emt 0:00:07]} 41. Nc4 {[%emt 0:00:32]} Ke7 {[%emt 0:00:03]} 42. Ke4 {[%emt 0:00:22]} Ke8 {[%emt 0:01:25]} 43. Ne5 {[%emt 0:00:30]} Be7 {[%emt 0:00:33]} 44. b4 {[%emt 0:00:08]} Bf6 {[%emt 0:00:17]} 45. Nxc6 {[%emt 0:00:16]} Bc3 {[%emt 0:00:17]} 46. b5 {[%emt 0:00:12]} Rd7 {[%emt 0:00:42]} 47. Rxa7 {[%emt 0:00:05]} Rd1 {[%emt 0:00:03]} 48. b6 {[%emt 0:00:07]} 1-0

[Event "Hungarian Rapid-ch 2022"]
[Site "Ajka"]
[Date "2022.07.17"]
[Round "13.26"]
[White "Horvath, Kristof"]
[Black "Csati, Oliver"]
[Result "1-0"]
[ECO "B22"]
[WhiteElo "2053"]
[BlackElo "2218"]
[Annotator "ChessBase"]
[PlyCount "82"]
[EventDate "2022.07.15"]
[EventType "swiss"]
[EventCountry "HUN"]
[SourceTitle "playchess.com"]
[Source "ChessBase"]
[SourceQuality "1"]
[TimeControl "900+10"]

1. e4 {[%emt 0:00:12]} c5 {[%emt 0:00:11]} 2. c3 {[%emt 0:00:02]} Nf6 {[%emt 0:00:55]} 3. e5 {[%emt 0:00:03]} Nd5 {[%emt 0:00:02]} 4. d4 {[%emt 0:00:20]} cxd4 {[%emt 0:00:20]} 5. Qxd4 {[%emt 0:00:02]} e6 {[%emt 0:00:25]} 6. Nf3 {[%emt 0:00:02]} Nc6 {[%emt 0:00:13]} 7. Qe4 {[%emt 0:00:02]} d6 {[%emt 0:00:46]} 8. Bc4 {[%emt 0:00:49]} dxe5 {[%emt 0:00:43]} 9. Nxe5 {[%emt 0:00:06]} Nxe5 {[%emt 0:00:05]} 10. Qxe5 {[%emt 0:00:03]} a6 {[%emt 0:02:58]} 11. O-O {[%emt 0:01:08]} Qf6 {[%emt 0:00:33]} 12. Qe4 {[%emt 0:01:11]} Nb6 {[%emt 0:00:35]} 13. Bd3 {[%emt 0:00:03]} Nd7 {[%emt 0:00:23]} 14. b4 {[%emt 0:00:53]} a5 {[%emt 0:00:49]} 15. Na3 {[%emt 0:03:04]} Bxb4 {[%emt 0:03:20]} 16. cxb4 {[%emt 0:00:32]} Qxa1 {[%emt 0:00:19]} 17. Nb5 {[%emt 0:00:26]} Qe5 {[%emt 0:00:52]} 18. Qh4 {[%emt 0:01:19]} Qb8 {[%emt 0:02:36]} 19. Bf4 {[%emt 0:00:29]} e5 {[%emt 0:00:01]} 20. Rc1 {[%emt 0:00:01]} f6 {[%emt 0:00:56]} 21. Rxc8+ {[%emt 0:00:10]} Qxc8 {[%emt 0:00:05]} 22. Nd6+ {[%emt 0:00:02]} Ke7 {[%emt 0:01:30]} 23. Nxc8+ {[%emt 0:00:30]} Rhxc8 {[%emt 0:00:11]} 24. Be3 {[%emt 0:00:21]} h6 {[%emt 0:00:05]} 25. Qg4 {[%emt 0:01:02]} g5 {[%emt 0:00:01]} 26. Bc4 {[%emt 0:00:01]} Rc6 {[%emt 0:00:18]} 27. Bb5 {[%emt 0:02:17]} Rd6 {[%emt 0:00:01]} 28. Bxd7 {[%emt 0:00:12]} Rxd7 {[%emt 0:00:01]} 29. Bc5+ {[%emt 0:00:02]} Kd8 {[%emt 0:00:31]} 30. h3 {[%emt 0:00:18]} axb4 31. Qe6 {[%emt 0:00:12]} Ra6 {[%emt 0:00:24]} 32. Bb6+ {[%emt 0:00:04]} Rxb6 {[%emt 0:00:08]} 33. Qxb6+ {[%emt 0:00:02]} Ke7 {[%emt 0:00:10]} 34. Qxb4+ {[%emt 0:00:03]} Kf7 {[%emt 0:00:07]} 35. Kf1 {[%emt 0:00:29]} Kg7 {[%emt 0:00:03]} 36. Ke2 {[%emt 0:00:02]} Kg6 {[%emt 0:00:20]} 37. g4 {[%emt 0:00:25]} Kg7 {[%emt 0:00:02]} 38. a4 {[%emt 0:00:15]} Kf7 {[%emt 0:00:03]} 39. Qe4 {[%emt 0:00:12]} Kg7 {[%emt 0:00:04]} 40. Qf5 {[%emt 0:00:16]} Rd4 41. Qc8 {[%emt 0:00:08]} Rd6 1-0

[Event "Hungarian Rapid-ch 2022"]
[Site "Ajka"]
[Date "2022.07.17"]
[Round "13.27"]
[White "Gelle, Istvan"]
[Black "Lazarne Vajda, Szidonia"]
[Result "1/2-1/2"]
[ECO "D00"]
[WhiteElo "2218"]
[BlackElo "2313"]
[Annotator "ChessBase"]
[PlyCount "163"]
[EventDate "2022.07.15"]
[EventType "swiss"]
[EventCountry "HUN"]
[SourceTitle "playchess.com"]
[Source "ChessBase"]
[SourceQuality "1"]
[TimeControl "900+10"]

1. d4 {[%emt 0:00:13]} d5 {[%emt 0:00:19]} 2. Bf4 {[%emt 0:00:02]} Nf6 {[%emt 0:00:09]} 3. e3 {[%emt 0:00:01]} e6 {[%emt 0:00:05]} 4. Nf3 {[%emt 0:00:02]} c5 {[%emt 0:00:12]} 5. c3 {[%emt 0:00:05]} Bd6 {[%emt 0:00:11]} 6. Bg3 {[%emt 0:00:03]} Qc7 {[%emt 0:00:17]} 7. Bxd6 {[%emt 0:00:05]} Qxd6 {[%emt 0:00:02]} 8. Ne5 {[%emt 0:00:03]} O-O {[%emt 0:00:41]} 9. Bd3 {[%emt 0:00:07]} Nc6 {[%emt 0:01:56]} 10. f4 {[%emt 0:00:04]} Ne4 {[%emt 0:00:13]} 11. Bxe4 {[%emt 0:03:47]} dxe4 {[%emt 0:00:02]} 12. Nd2 {[%emt 0:02:05]} f5 {[%emt 0:02:20]} 13. Ndc4 {[%emt 0:01:31]} Qd5 {[%emt 0:00:26]} 14. dxc5 {[%emt 0:01:20]} Qxc5 {[%emt 0:00:58]} 15. b4 {[%emt 0:01:48]} Qe7 {[%emt 0:00:22]} 16. Qd6 {[%emt 0:00:33]} Qxd6 {[%emt 0:03:10]} 17. Nxd6 {[%emt 0:00:02]} Nxe5 {[%emt 0:00:48]} 18. fxe5 {[%emt 0:00:03]} b6 {[%emt 0:00:12]} 19. g3 {[%emt 0:02:31]} Bd7 {[%emt 0:00:21]} 20. a4 {[%emt 0:00:24]} a6 {[%emt 0:00:29]} 21. a5 {[%emt 0:00:55]} b5 {[%emt 0:00:18]} 22. Nb7 {[%emt 0:00:52]} Bc6 {[%emt 0:00:24]} 23. Nc5 {[%emt 0:00:02]} Bd5 {[%emt 0:00:05]} 24. Rd1 {[%emt 0:00:22]} Rfd8 {[%emt 0:00:17]} 25. Rd4 {[%emt 0:00:22]} Kf7 {[%emt 0:00:02]} 26. Kf2 {[%emt 0:00:17]} Ke7 {[%emt 0:00:01]} 27. Rhd1 {[%emt 0:00:04]} Rdc8 {[%emt 0:02:00]} 28. Rg1 {[%emt 0:00:35]} Rxc5 {[%emt 0:00:15]} 29. bxc5 {[%emt 0:00:02]} Rc8 {[%emt 0:00:00]} 30. Ke2 {[%emt 0:00:26]} Rxc5 {[%emt 0:00:03]} 31. Kd2 {[%emt 0:00:01]} h5 {[%emt 0:01:50]} 32. h3 {[%emt 0:00:04]} Bb7 {[%emt 0:00:35]} 33. g4 {[%emt 0:00:24]} fxg4 {[%emt 0:00:07]} 34. hxg4 {[%emt 0:00:02]} h4 {[%emt 0:00:01]} 35. g5 {[%emt 0:00:42]} Rxe5 {[%emt 0:00:06]} 36. Rh1 {[%emt 0:00:28]} Rxg5 {[%emt 0:00:14]} 37. Rxh4 {[%emt 0:00:02]} Rg2+ {[%emt 0:00:06]} 38. Kc1 {[%emt 0:00:13]} Bd5 {[%emt 0:00:21]} 39. Rd2 {[%emt 0:00:20]} Rg3 {[%emt 0:00:09]} 40. Re2 {[%emt 0:00:23]} Kd6 {[%emt 0:00:07]} 41. Rhh2 {[%emt 0:00:13]} Kc5 {[%emt 0:00:02]} 42. Rhg2 {[%emt 0:00:04]} Rxg2 {[%emt 0:00:47]} 43. Rxg2 {[%emt 0:00:01]} b4 {[%emt 0:00:01]} 44. cxb4+ {[%emt 0:00:26]} Kxb4 {[%emt 0:00:00]} 45. Rxg7 {[%emt 0:00:04]} Kxa5 {[%emt 0:00:01]} 46. Rc7 {[%emt 0:00:17]} Kb6 {[%emt 0:00:06]} 47. Rc8 {[%emt 0:00:08]} a5 {[%emt 0:00:01]} 48. Kb2 {[%emt 0:00:02]} Kb7 {[%emt 0:00:56]} 49. Rc3 {[%emt 0:00:13]} Kb6 {[%emt 0:00:04]} 50. Ka3 {[%emt 0:00:01]} Kb5 {[%emt 0:00:09]} 51. Rc8 {[%emt 0:00:12]} Kb6 {[%emt 0:00:00]} 52. Rb8+ {[%emt 0:00:14]} Kc7 {[%emt 0:00:32]} 53. Rb5 {[%emt 0:00:16]} a4 {[%emt 0:00:01]} 54. Rb4 {[%emt 0:00:20]} Bb3 {[%emt 0:00:05]} 55. Rd4 {[%emt 0:00:10]} Kc6 {[%emt 0:00:04]} 56. Kb4 {[%emt 0:00:02]} Kc7 {[%emt 0:00:14]} 57. Rxe4 {[%emt 0:00:02]} Kd6 {[%emt 0:00:00]} 58. Rd4+ {[%emt 0:00:05]} Ke5 {[%emt 0:00:02]} 59. Kc3 {[%emt 0:00:07]} Kf5 {[%emt 0:00:05]} 60. Rb4 {[%emt 0:00:03]} Ke5 {[%emt 0:00:08]} 61. Kd3 {[%emt 0:00:04]} Kf5 {[%emt 0:00:03]} 62. Rb5+ {[%emt 0:00:04]} e5 {[%emt 0:00:16]} 63. Rb4 {[%emt 0:00:07]} Bd1 {[%emt 0:00:05]} 64. Kd2 {[%emt 0:00:10]} Bb3 {[%emt 0:00:04]} 65. Ke2 {[%emt 0:00:22]} Bc2 {[%emt 0:00:08]} 66. Rc4 {[%emt 0:00:23]} Bb3 {[%emt 0:00:02]} 67. Rb4 {[%emt 0:00:13]} Bc2 {[%emt 0:00:02]} 68. Kd2 {[%emt 0:00:03]} Bb3 {[%emt 0:00:01]} 69. Kd3 {[%emt 0:00:12]} Bd1 {[%emt 0:00:07]} 70. Rb1 {[%emt 0:00:02]} Bb3 {[%emt 0:00:08]} 71. Rf1+ {[%emt 0:00:04]} Ke6 {[%emt 0:00:01]} 72. e4 {[%emt 0:00:23]} Kd6 {[%emt 0:00:11]} 73. Kc3 {[%emt 0:00:06]} Be6 {[%emt 0:00:05]} 74. Kb4 {[%emt 0:00:12]} Bb3 {[%emt 0:00:08]} 75. Rf6+ {[%emt 0:00:04]} Ke7 {[%emt 0:00:01]} 76. Ra6 {[%emt 0:00:01]} Bc2 {[%emt 0:00:01]} 77. Ra5 {[%emt 0:00:49]} Kf6 {[%emt 0:00:07]} 78. Ra6+ {[%emt 0:00:12]} Kg5 {[%emt 0:00:04]} 79. Kc3 {[%emt 0:00:08]} Bxe4 {[%emt 0:00:05]} 80. Rxa4 {[%emt 0:00:01]} Kf5 {[%emt 0:00:07]} 81. Kd2 {[%emt 0:00:02]} Bd5 {[%emt 0:00:06]} 82. Ke3 {[%emt 0:00:02]} 1/2-1/2